[Event "Irish International Open 2019"]
[Site "Dublin"]
[Date "2019.04.22"]
[Round "9.4"]
[White "Hovhannisyan, Mher"]
[Black "Jackson, James P"]
[Result "1-0"]
[ECO "E62"]
[WhiteElo "2462"]
[BlackElo "2388"]
[Annotator "ChessBase"]
[PlyCount "137"]
[EventDate "2019.02.28"]
[EventType "swiss"]
[EventCountry "IRL"]
[SourceTitle "playchess.com"]
[Source "ChessBase"]
[SourceQuality "1"]
[TimeControl "5400+30"]

1. Nf3 {[%emt 0:00:00]} Nf6 {[%emt 0:03:18]} 2. d4 {[%emt 0:00:18]} g6 {[%emt 0:00:08]} 3. g3 {[%emt 0:00:14]} Bg7 {[%emt 0:00:06]} 4. Bg2 {[%emt 0:00:04]} O-O {[%emt 0:00:06]} 5. c4 {[%emt 0:00:33]} d6 {[%emt 0:00:12]} 6. O-O {[%emt 0:00:33]} Nc6 {[%emt 0:00:09]} 7. Nc3 {[%emt 0:00:21]} e5 {[%emt 0:00:09]} 8. d5 {[%emt 0:02:25]} Nb8 {[%emt 0:00:10]} 9. c5 {[%emt 0:00:30]} Nbd7 {[%emt 0:01:38]} 10. cxd6 {[%emt 0:00:56]} cxd6 {[%emt 0:00:07]} 11. a4 {[%emt 0:00:15]} a5 {[%emt 0:01:20]} 12. Nd2 {[%emt 0:02:13]} Nc5 {[%emt 0:00:33]} 13. Nc4 {[%emt 0:01:09]} Ne8 {[%emt 0:11:08]} 14. Be3 {[%emt 0:17:09]} b6 {[%emt 0:04:17]} 15. Ra3 {[%emt 0:05:25]} Ba6 {[%emt 0:02:14]} 16. Bxc5 {[%emt 0:05:59]} Bxc4 {[%emt 0:01:10]} 17. Be3 {[%emt 0:00:30]} f5 {[%emt 0:00:48]} 18. Qd2 {[%emt 0:06:05]} Nf6 {[%emt 0:10:45]} 19. Rc1 {[%emt 0:03:19]} f4 {[%emt 0:13:47]} 20. gxf4 {[%emt 0:05:57]} Ng4 {[%emt 0:00:08]} 21. Ne4 {[%emt 0:04:50]} Nxe3 {[%emt 0:08:35]} 22. fxe3 {[%emt 0:02:08]} Ba6 {[%emt 0:00:13]} 23. Ng5 {[%emt 0:01:30]} exf4 {[%emt 0:16:57]} 24. exf4 {[%emt 0:08:07]} Qf6 {[%emt 0:01:29]} 25. Rc7 {[%emt 0:02:18]} Qxb2 {[%emt 0:01:44]} 26. Qxb2 {[%emt 0:04:25]} Bxb2 {[%emt 0:00:06]} 27. Rb3 {[%emt 0:02:27]} Bd4+ {[%emt 0:01:15]} 28. e3 {[%emt 0:01:23]} Bc5 {[%emt 0:00:14]} 29. Bh3 {[%emt 0:04:16]} Bc8 {[%emt 0:03:23]} 30. Be6+ {[%emt 0:02:09]} Bxe6 {[%emt 0:00:08]} 31. Nxe6 {[%emt 0:00:06]} Rf7 {[%emt 0:00:12]} 32. Rc6 {[%emt 0:01:18]} Rd7 {[%emt 0:00:46]} 33. Kg2 {[%emt 0:00:33]} Kf7 {[%emt 0:03:13]} 34. Kf3 {[%emt 0:00:27]} Re8 {[%emt 0:00:27]} 35. e4 {[%emt 0:00:44]} Rxe6 {[%emt 0:01:11]} 36. dxe6+ {[%emt 0:00:30]} Kxe6 {[%emt 0:00:05]} 37. Rd3 {[%emt 0:03:22]} Rf7 {[%emt 0:03:10]} 38. Rc8 {[%emt 0:01:51]} Kd7 {[%emt 0:00:10]} 39. Ra8 {[%emt 0:02:06]} Kc6 {[%emt 0:00:07]} 40. h4 {[%emt 0:00:48]} Kb7 {[%emt 0:02:07]} 41. Re8 {[%emt 0:00:41]} Kc6 {[%emt 0:03:19]} 42. Rb3 {[%emt 0:04:11]} Bb4 {[%emt 0:02:51]} 43. Rc8+ {[%emt 0:01:26]} Kd7 {[%emt 0:00:46]} 44. Rc2 {[%emt 0:00:49]} Ke6 {[%emt 0:01:21]} 45. Rd3 {[%emt 0:00:36]} Bc5 {[%emt 0:00:32]} 46. Rd5 {[%emt 0:00:26]} Kd7 {[%emt 0:01:05]} 47. h5 {[%emt 0:04:53]} Kc6 {[%emt 0:00:52]} 48. Rb2 {[%emt 0:00:34]} Rg7 {[%emt 0:00:46]} 49. Rg5 {[%emt 0:00:15]} Bd4 {[%emt 0:00:22]} 50. Rc2+ {[%emt 0:00:07]} Bc5 {[%emt 0:00:14]} 51. f5 {[%emt 0:00:57]} b5 {[%emt 0:00:09]} 52. axb5+ {[%emt 0:00:06]} Kxb5 {[%emt 0:00:04]} 53. hxg6 {[%emt 0:00:44]} hxg6 {[%emt 0:00:09]} 54. fxg6 {[%emt 0:01:01]} Kb4 {[%emt 0:00:35]} 55. e5 {[%emt 0:00:35]} Kb3 {[%emt 0:01:34]} 56. Rh2 {[%emt 0:00:44]} a4 {[%emt 0:01:21]} 57. Rh7 {[%emt 0:00:33]} a3 {[%emt 0:00:18]} 58. Rxg7 {[%emt 0:00:28]} a2 {[%emt 0:00:06]} 59. Rb7+ {[%emt 0:00:33]} Kc3 {[%emt 0:00:13]} 60. g7 {[%emt 0:00:34]} a1=Q {[%emt 0:00:10]} 61. g8=Q {[%emt 0:00:01]} Qf1+ {[%emt 0:02:43]} 62. Kg4 {[%emt 0:00:33]} Qg2+ {[%emt 0:00:40]} 63. Kh5 {[%emt 0:00:20]} Qh1+ {[%emt 0:00:16]} 64. Kg6 {[%emt 0:00:23]} Qxb7 {[%emt 0:01:13]} 65. Rg3+ {[%emt 0:00:59]} Kb2 {[%emt 0:01:14]} 66. Qc4 {[%emt 0:00:23]} dxe5 {[%emt 0:01:37]} 67. Qxc5 {[%emt 0:00:43]} Qe4+ {[%emt 0:00:11]} 68. Kg7 {[%emt 0:00:20]} Qb7+ {[%emt 0:00:44]} 69. Kf6 {[%emt 0:00:21]} 1-0

[Event "Irish International Open 2019"]
[Site "Dublin"]
[Date "2019.04.22"]
[Round "9.5"]
[White "De Verdier, Michael"]
[Black "Strikovic, Aleksa"]
[Result "0-1"]
[ECO "E62"]
[WhiteElo "2306"]
[BlackElo "2493"]
[Annotator "ChessBase"]
[PlyCount "112"]
[EventDate "2019.02.28"]
[EventType "swiss"]
[EventCountry "IRL"]
[SourceTitle "playchess.com"]
[Source "ChessBase"]
[SourceQuality "1"]
[TimeControl "5400+30"]

1. Nf3 {[%emt 0:00:00]} Nf6 {[%emt 0:02:07]} 2. c4 {[%emt 0:00:30]} d6 {[%emt 0:00:17]} 3. g3 {[%emt 0:01:06]} g6 {[%emt 0:00:26]} 4. Bg2 {[%emt 0:00:06]} Bg7 {[%emt 0:00:03]} 5. O-O {[%emt 0:00:17]} O-O {[%emt 0:00:08]} 6. d4 {[%emt 0:00:22]} c6 {[%emt 0:00:06]} 7. Nc3 {[%emt 0:00:07]} Qb6 {[%emt 0:00:23]} 8. c5 {[%emt 0:00:07]} dxc5 {[%emt 0:00:29]} 9. Na4 {[%emt 0:00:06]} Qd8 {[%emt 0:00:05]} 10. Nxc5 {[%emt 0:00:04]} Nbd7 {[%emt 0:00:03]} 11. Nd3 {[%emt 0:02:22]} a5 {[%emt 0:08:47]} 12. a4 {[%emt 0:12:25]} Nb8 {[%emt 0:12:33]} 13. Re1 {[%emt 0:12:11]} Bf5 {[%emt 0:03:44]} 14. Nc5 {[%emt 0:06:01]} b6 {[%emt 0:00:44]} 15. e4 {[%emt 0:02:22]} bxc5 {[%emt 0:00:06]} 16. exf5 {[%emt 0:00:06]} gxf5 {[%emt 0:00:05]} 17. dxc5 {[%emt 0:08:30]} Qxd1 {[%emt 0:02:30]} 18. Rxd1 {[%emt 0:00:01]} Nd5 {[%emt 0:00:08]} 19. Nd4 {[%emt 0:03:42]} e6 {[%emt 0:00:05]} 20. Bf4 {[%emt 0:03:54]} Rc8 {[%emt 0:00:35]} 21. Bd6 {[%emt 0:04:40]} Na6 {[%emt 0:00:16]} 22. Rac1 {[%emt 0:05:45]} Nab4 {[%emt 0:01:28]} 23. Bf1 {[%emt 0:03:50]} Ra7 {[%emt 0:02:29]} 24. h3 {[%emt 0:03:53]} Bf8 {[%emt 0:00:11]} 25. Bc4 {[%emt 0:07:07]} Be7 {[%emt 0:04:29]} 26. Kg2 {[%emt 0:02:58]} Kf8 {[%emt 0:00:12]} 27. Kf3 {[%emt 0:00:45]} Rd7 {[%emt 0:11:05]} 28. Bxe7+ {[%emt 0:02:29]} Rxe7 {[%emt 0:01:51]} 29. g4 {[%emt 0:01:22]} fxg4+ {[%emt 0:00:39]} 30. hxg4 {[%emt 0:00:05]} Kg7 {[%emt 0:00:06]} 31. Kg3 {[%emt 0:01:19]} Nf6 {[%emt 0:02:50]} 32. f3 {[%emt 0:01:46]} Nbd5 {[%emt 0:02:28]} 33. Re1 {[%emt 0:02:04]} Ra7 {[%emt 0:00:42]} 34. f4 {[%emt 0:02:16]} Ne7 {[%emt 0:10:10]} 35. Rcd1 {[%emt 0:03:42]} Rd7 {[%emt 0:08:15]} 36. Nb3 {[%emt 0:00:34]} Nfd5 {[%emt 0:01:46]} 37. Bxd5 {[%emt 0:06:59]} cxd5 {[%emt 0:00:48]} 38. Nxa5 {[%emt 0:00:55]} Rb8 {[%emt 0:01:16]} 39. f5 {[%emt 0:01:03]} Ra7 {[%emt 0:00:11]} 40. Rf1 {[%emt 0:01:04]} f6 {[%emt 0:04:31]} 41. g5 {[%emt 0:00:55]} Nxf5+ {[%emt 0:03:11]} 42. Rxf5 {[%emt 0:00:09]} exf5 {[%emt 0:00:02]} 43. Nc6 {[%emt 0:00:35]} Rb3+ {[%emt 0:00:07]} 44. Kf4 {[%emt 0:00:04]} Rxa4+ {[%emt 0:00:24]} 45. Kxf5 {[%emt 0:00:31]} Rf3+ {[%emt 0:06:20]} 46. Ke6 {[%emt 0:00:01]} fxg5 {[%emt 0:00:06]} 47. Rxd5 {[%emt 0:00:55]} Ra6 {[%emt 0:00:38]} 48. Rd7+ {[%emt 0:00:26]} Kg6 {[%emt 0:01:07]} 49. Kd5 {[%emt 0:00:02]} Rd3+ {[%emt 0:00:52]} 50. Nd4 {[%emt 0:01:30]} g4 {[%emt 0:00:44]} 51. Ke4 {[%emt 0:00:35]} Rd1 {[%emt 0:02:30]} 52. b4 {[%emt 0:00:30]} g3 {[%emt 0:01:05]} 53. Rd8 {[%emt 0:00:19]} Kh5 {[%emt 0:01:17]} 54. Kf3 {[%emt 0:01:02]} Ra3+ {[%emt 0:00:09]} 55. Kg2 {[%emt 0:00:21]} Rd2+ {[%emt 0:00:07]} 56. Kh3 {[%emt 0:00:14]} Rh2# {[%emt 0:00:05]} 0-1

[Event "Irish International Open 2019"]
[Site "Dublin"]
[Date "2019.04.22"]
[Round "9.6"]
[White "Thorfinnsson, Bjorn"]
[Black "Burns-Mannion, Stephen"]
[Result "1/2-1/2"]
[ECO "D02"]
[WhiteElo "2399"]
[BlackElo "2285"]
[Annotator "NA"]
[PlyCount "128"]
[EventDate "2019.02.28"]
[EventType "swiss"]
[EventCountry "IRL"]
[SourceTitle "playchess.com"]
[Source "ChessBase"]
[SourceQuality "1"]
[TimeControl "5400+30"]

1. d4 {[%emt 0:00:00]} d5 {[%emt 0:00:00]} 2. Nf3 {[%emt 0:00:00]} Nf6 {[%emt 0:00:00]} 3. c3 {[%emt 0:00:00]} Bf5 {[%emt 0:01:09]} 4. Bf4 {[%emt 0:00:58]} e6 {[%emt 0:00:50]} 5. Nbd2 {[%emt 0:01:28]} h6 {[%emt 0:01:32]} 6. Qb3 {[%emt 0:03:23]} Qc8 {[%emt 0:00:41]} 7. c4 {[%emt 0:01:13]} c6 {[%emt 0:01:19]} 8. h3 {[%emt 0:02:09]} Be7 {[%emt 0:01:07]} 9. g4 {[%emt 0:00:14]} Bh7 {[%emt 0:01:26]} 10. Bg2 {[%emt 0:00:07]} O-O {[%emt 0:00:59]} 11. Rc1 $11 {[%emt 0:00:58]} Nbd7 {[%emt 0:15:06]} 12. Ne5 {[%emt 0:03:42]} Nxe5 {[%emt 0:17:51]} 13. dxe5 {[%emt 0:00:36]} dxc4 {[%emt 0:00:26]} 14. Nxc4 {[%emt 0:01:46]} Nd5 {[%emt 0:00:34]} 15. Bd2 {[%emt 0:00:21]} Nb6 {[%emt 0:16:55]} 16. Nxb6 {[%emt 0:07:47]} axb6 {[%emt 0:01:29]} 17. Qxb6 {[%emt 0:00:07]} Rxa2 {[%emt 0:00:23]} 18. O-O {[%emt 0:00:09]} Qa8 {[%emt 0:07:55]} 19. Bc3 {[%emt 0:01:04]} g5 {[%emt 0:08:39]} 20. Rfd1 {[%emt 0:00:46]} Rd8 {[%emt 0:04:16]} 21. Qc7 {[%emt 0:03:15]} Rxd1+ {[%emt 0:08:33]} 22. Rxd1 {[%emt 0:00:14]} Ra1 {[%emt 0:00:05]} 23. Rxa1 {[%emt 0:00:56]} Qxa1+ {[%emt 0:00:02]} 24. Kh2 {[%emt 0:00:46]} Bf8 {[%emt 0:03:14]} 25. Qxb7 {[%emt 0:00:40]} c5 {[%emt 0:00:06]} 26. e3 {[%emt 0:03:25]} Qa4 {[%emt 0:00:51]} 27. Qa8 {[%emt 0:01:28]} Qxa8 {[%emt 0:04:02]} 28. Bxa8 {[%emt 0:00:06]} Bd3 {[%emt 0:00:25]} 29. Bc6 {[%emt 0:01:29]} Be7 {[%emt 0:00:05]} 30. Ba5 {[%emt 0:00:54]} f6 {[%emt 0:00:47]} 31. Bc7 {[%emt 0:00:43]} fxe5 {[%emt 0:00:10]} 32. Bxe5 {[%emt 0:00:06]} Kf7 {[%emt 0:00:09]} 33. Kg2 {[%emt 0:00:25]} Bf8 {[%emt 0:00:22]} 34. Kg3 {[%emt 0:01:54]} Be7 {[%emt 0:00:04]} 35. Bg2 {[%emt 0:01:28]} Bc2 {[%emt 0:00:48]} 36. Bf1 {[%emt 0:00:41]} Be4 {[%emt 0:00:07]} 37. f3 {[%emt 0:00:06]} Bc2 {[%emt 0:01:28]} 38. Bc4 {[%emt 0:00:26]} Bf8 {[%emt 0:00:29]} 39. Kf2 {[%emt 0:04:48]} Ke7 {[%emt 0:01:12]} 40. Bc3 {[%emt 0:01:54]} Kd7 {[%emt 0:01:19]} 41. b3 {[%emt 0:01:32]} Bg6 {[%emt 0:00:39]} 42. Ke2 {[%emt 0:01:06]} Be7 {[%emt 0:00:12]} 43. Bg7 {[%emt 0:02:03]} h5 {[%emt 0:00:01]} 44. gxh5 {[%emt 0:00:07]} Bxh5 {[%emt 0:00:02]} 45. Kf2 {[%emt 0:00:10]} Kd6 {[%emt 0:00:57]} 46. Kg3 {[%emt 0:00:54]} e5 {[%emt 0:01:17]} 47. Bg8 {[%emt 0:02:34]} Be8 {[%emt 0:00:10]} 48. Bh7 {[%emt 0:06:17]} Bf7 {[%emt 0:00:43]} 49. Bc2 {[%emt 0:00:06]} Be6 {[%emt 0:00:13]} 50. Bh6 {[%emt 0:00:08]} Kc6 {[%emt 0:01:02]} 51. Bd1 {[%emt 0:00:40]} Kd6 {[%emt 0:00:18]} 52. Bg7 {[%emt 0:01:01]} Bf7 {[%emt 0:00:59]} 53. Kg4 {[%emt 0:00:12]} Be6+ {[%emt 0:00:04]} 54. Kh5 {[%emt 0:00:08]} Bxh3 {[%emt 0:00:38]} 55. Bh6 {[%emt 0:00:12]} Be6 {[%emt 0:00:25]} 56. Bxg5 {[%emt 0:00:08]} Bxg5 {[%emt 0:02:25]} 57. Kxg5 {[%emt 0:01:46]} c4 {[%emt 0:00:00]} 58. b4 {[%emt 0:01:31]} c3 {[%emt 0:00:28]} 59. Kf6 {[%emt 0:00:49]} Bc4 {[%emt 0:00:40]} 60. Bc2 {[%emt 0:00:18]} Bd5 {[%emt 0:00:32]} 61. f4 {[%emt 0:00:17]} exf4 {[%emt 0:00:16]} 62. exf4 {[%emt 0:00:05]} Bc4 {[%emt 0:00:23]} 63. f5 {[%emt 0:05:20]} Kc6 {[%emt 0:00:32]} 64. Ke7 {[%emt 0:01:08]} Kb5 {[%emt 0:00:23]} 1/2-1/2

[Event "Irish International Open 2019"]
[Site "Dublin"]
[Date "2019.04.22"]
[Round "9.7"]
[White "Pulkkinen, Kari"]
[Black "Longson, Alexander"]
[Result "1/2-1/2"]
[ECO "B13"]
[WhiteElo "2265"]
[BlackElo "2318"]
[Annotator "NA"]
[PlyCount "31"]
[EventDate "2019.02.28"]
[EventType "swiss"]
[EventCountry "IRL"]
[SourceTitle "playchess.com"]
[Source "ChessBase"]
[SourceQuality "1"]
[TimeControl "5400+30"]

1. e4 {[%emt 0:00:00]} c6 {[%emt 0:00:00]} 2. d4 {[%emt 0:00:01]} d5 {[%emt 0:00:00]} 3. exd5 {[%emt 0:00:23]} cxd5 {[%emt 0:00:01]} 4. c4 {[%emt 0:00:13]} Nf6 {[%emt 0:00:15]} 5. Nc3 {[%emt 0:00:17]} Nc6 {[%emt 0:00:25]} 6. Nf3 {[%emt 0:01:35]} Bg4 {[%emt 0:00:28]} 7. cxd5 {[%emt 0:01:30]} Nxd5 {[%emt 0:01:27]} 8. Qb3 {[%emt 0:00:56]} Bxf3 {[%emt 0:03:15]} 9. gxf3 {[%emt 0:00:28]} e6 {[%emt 0:01:04]} 10. Qxb7 {[%emt 0:01:10]} Nxd4 {[%emt 0:00:55]} 11. Bb5+ {[%emt 0:02:07]} Nxb5 {[%emt 0:00:21]} 12. Qc6+ {[%emt 0:01:51]} Ke7 {[%emt 0:01:17]} 13. Qxb5 {[%emt 0:00:32]} Qd7 {[%emt 0:03:55]} 14. Nxd5+ {[%emt 0:01:48]} Qxd5 {[%emt 0:04:26]} 15. Qxd5 $11 {[%emt 0:00:35]} exd5 {[%emt 0:00:05]} 16. Be3 {[%emt 0:00:31]} 1/2-1/2

[Event "Irish International Open 2019"]
[Site "Dublin"]
[Date "2019.04.22"]
[Round "9.9"]
[White "Murray, David"]
[Black "Fitzsimons, David"]
[Result "0-1"]
[ECO "B07"]
[WhiteElo "2152"]
[BlackElo "2299"]
[Annotator "NA"]
[PlyCount "64"]
[EventDate "2019.02.28"]
[EventType "swiss"]
[EventCountry "IRL"]
[SourceTitle "playchess.com"]
[Source "ChessBase"]
[SourceQuality "1"]
[TimeControl "5400+30"]

1. e4 {[%emt 0:10:22]} d6 {[%emt 0:01:27]} 2. d4 {[%emt 0:00:07]} Nf6 {[%emt 0:00:04]} 3. Nc3 {[%emt 0:00:08]} g6 {[%emt 0:00:06]} 4. Bg5 {[%emt 0:00:35]} c6 {[%emt 0:00:26]} 5. Qd2 {[%emt 0:00:20]} Nbd7 {[%emt 0:00:13]} 6. f4 {[%emt 0:04:40]} d5 {[%emt 0:00:55]} 7. e5 {[%emt 0:02:10]} Ne4 {[%emt 0:00:08]} 8. Nxe4 {[%emt 0:00:11]} dxe4 {[%emt 0:00:05]} 9. Bc4 {[%emt 0:01:58]} f6 {[%emt 0:03:23]} 10. Bh4 {[%emt 0:03:40]} Bh6 {[%emt 0:01:10]} 11. Ne2 {[%emt 0:01:51]} Nb6 {[%emt 0:07:37]} 12. Bb3 {[%emt 0:00:29]} fxe5 {[%emt 0:04:42]} 13. dxe5 {[%emt 0:06:26]} Qxd2+ {[%emt 0:00:33]} 14. Kxd2 {[%emt 0:00:06]} Bg4 $11 {[%emt 0:00:09]} 15. g3 {[%emt 0:05:02]} Rd8+ {[%emt 0:02:10]} 16. Ke3 {[%emt 0:01:26]} Nd5+ {[%emt 0:00:58]} 17. Bxd5 {[%emt 0:00:23]} Rxd5 {[%emt 0:00:14]} 18. h3 {[%emt 0:04:23]} Bf3 {[%emt 0:02:13]} 19. Rhd1 {[%emt 0:00:18]} Rxe5 {[%emt 1:12:57]} 20. Rd2 {[%emt 0:01:25]} O-O {[%emt 0:00:00]} 21. Rd7 {[%emt 0:03:23]} g5 {[%emt 0:00:00]} 22. fxg5 {[%emt 0:04:28]} Rxg5 {[%emt 0:00:00]} 23. Rxe7 {[%emt 0:07:12]} Rxg3+ {[%emt 0:00:00]} 24. Kd4 {[%emt 0:01:18]} Rd8+ {[%emt 0:00:00]} 25. Kc3 {[%emt 0:02:00]} Rxh3 {[%emt 0:00:00]} 26. Rg1+ {[%emt 0:03:23]} Kf8 {[%emt 0:00:00]} 27. Nd4 {[%emt 0:05:27]} Rxh4 {[%emt 0:00:00]} 28. Rxb7 {[%emt 0:00:50]} Bg4 {[%emt 0:00:00]} 29. Rxa7 {[%emt 0:03:16]} Be3 {[%emt 0:00:00]} 30. Rf1+ {[%emt 0:01:00]} Kg8 {[%emt 0:00:00]} 31. Nxc6 {[%emt 0:01:33]} Rc8 {[%emt 0:00:00]} 32. Ra6 {[%emt 0:00:38]} Be2 {[%emt 0:00:00]} 0-1

[Event "Irish International Open 2019"]
[Site "Dublin"]
[Date "2019.04.22"]
[Round "9.10"]
[White "Longson, Sarah N"]
[Black "Brady, Stephen"]
[Result "1/2-1/2"]
[ECO "B01"]
[WhiteElo "2123"]
[BlackElo "2301"]
[Annotator "NA"]
[PlyCount "130"]
[EventDate "2019.02.28"]
[EventType "swiss"]
[EventCountry "IRL"]
[SourceTitle "playchess.com"]
[Source "ChessBase"]
[SourceQuality "1"]
[TimeControl "5400+30"]

1. e4 {[%emt 0:00:00]} d5 {[%emt 0:03:41]} 2. exd5 {[%emt 0:00:00]} Qxd5 {[%emt 0:00:08]} 3. Nc3 {[%emt 0:00:02]} Qa5 {[%emt 0:00:05]} 4. d4 {[%emt 0:00:05]} Nf6 {[%emt 0:00:10]} 5. Bc4 {[%emt 0:00:39]} Bf5 {[%emt 0:03:21]} 6. Bd2 {[%emt 0:01:04]} c6 {[%emt 0:00:58]} 7. Nd5 {[%emt 0:00:43]} Qd8 {[%emt 0:00:07]} 8. Nxf6+ {[%emt 0:00:09]} gxf6 {[%emt 0:00:07]} 9. Nf3 {[%emt 0:00:09]} Nd7 {[%emt 0:02:23]} 10. c3 {[%emt 0:03:35]} Nb6 {[%emt 0:03:27]} 11. Bb3 {[%emt 0:00:41]} e6 {[%emt 0:08:49]} 12. Qe2 {[%emt 0:01:04]} Bd6 {[%emt 0:04:11]} 13. Nh4 {[%emt 0:02:16]} Bg6 {[%emt 0:00:10]} 14. g3 $16 {[%emt 0:05:37]} Qc7 {[%emt 0:07:52]} 15. c4 {[%emt 0:06:08]} c5 {[%emt 0:06:22]} 16. d5 {[%emt 0:08:54]} O-O-O {[%emt 0:02:03]} 17. Nxg6 {[%emt 0:04:50]} hxg6 {[%emt 0:00:52]} 18. dxe6 {[%emt 0:01:16]} Rhe8 {[%emt 0:00:19]} 19. O-O-O {[%emt 0:01:31]} Rxe6 {[%emt 0:01:46]} 20. Qg4 {[%emt 0:04:27]} f5 {[%emt 0:02:25]} 21. Qg5 {[%emt 0:04:58]} Re4 {[%emt 0:07:26]} 22. Rhe1 {[%emt 0:21:41]} Rde8 {[%emt 0:11:18]} 23. Rxe4 {[%emt 0:01:27]} Rxe4 {[%emt 0:00:07]} 24. Re1 {[%emt 0:03:07]} Rxe1+ {[%emt 0:13:00]} 25. Bxe1 {[%emt 0:00:03]} Qc6 {[%emt 0:00:18]} 26. Qe3 {[%emt 0:03:42]} Kd7 {[%emt 0:05:30]} 27. h4 {[%emt 0:02:29]} f4 {[%emt 0:00:33]} 28. Qe2 {[%emt 0:03:24]} Qh1 {[%emt 0:05:05]} 29. Kd1 {[%emt 0:00:53]} Kc7 {[%emt 0:00:40]} 30. Qe8 {[%emt 0:06:31]} Qf3+ {[%emt 0:00:14]} 31. Qe2 {[%emt 0:00:02]} Qxe2+ {[%emt 0:01:10]} 32. Kxe2 {[%emt 0:00:02]} fxg3 {[%emt 0:00:06]} 33. fxg3 {[%emt 0:00:03]} Be5 {[%emt 0:00:11]} 34. g4 {[%emt 0:04:12]} Nd7 {[%emt 0:01:23]} 35. Bc3 {[%emt 0:06:04]} Bxc3 {[%emt 0:03:20]} 36. bxc3 {[%emt 0:00:01]} Kd6 {[%emt 0:00:08]} 37. Ke3 {[%emt 0:01:20]} Ke5 {[%emt 0:00:21]} 38. Ba4 {[%emt 0:01:39]} Nf6 {[%emt 0:00:15]} 39. Kf3 {[%emt 0:00:57]} Ne4 {[%emt 0:01:04]} 40. h5 {[%emt 0:01:32]} gxh5 {[%emt 0:01:54]} 41. gxh5 {[%emt 0:00:08]} f5 {[%emt 0:01:06]} 42. Bc2 {[%emt 0:01:31]} Ng5+ {[%emt 0:02:19]} 43. Kg3 {[%emt 0:01:05]} Nf7 {[%emt 0:00:05]} 44. Kf3 {[%emt 0:00:29]} Nh6 {[%emt 0:00:42]} 45. Bd3 {[%emt 0:00:41]} Nf7 {[%emt 0:01:26]} 46. Bc2 {[%emt 0:00:17]} Ng5+ {[%emt 0:02:49]} 47. Kg3 {[%emt 0:00:04]} Nf7 {[%emt 0:00:57]} 48. Kf3 {[%emt 0:00:11]} Nh6 {[%emt 0:00:13]} 49. Bd3 {[%emt 0:00:30]} Ng4 {[%emt 0:00:29]} 50. Bc2 {[%emt 0:00:16]} b6 {[%emt 0:00:30]} 51. Bd3 {[%emt 0:00:16]} Nh6 {[%emt 0:00:41]} 52. Bc2 {[%emt 0:00:08]} Nf7 {[%emt 0:00:14]} 53. Bd3 {[%emt 0:00:05]} Ng5+ {[%emt 0:00:40]} 54. Kg3 {[%emt 0:00:14]} Nf7 {[%emt 0:00:42]} 55. Kf3 {[%emt 0:00:09]} Nh6 {[%emt 0:00:22]} 56. Bc2 {[%emt 0:00:33]} a6 {[%emt 0:00:05]} 57. Bd3 {[%emt 0:00:21]} Ng8 {[%emt 0:00:29]} 58. Bc2 {[%emt 0:01:13]} Nh6 {[%emt 0:00:36]} 59. Bd3 {[%emt 0:00:18]} Nf7 {[%emt 0:00:05]} 60. Bc2 {[%emt 0:00:09]} Nd8 {[%emt 0:02:11]} 61. Bd3 {[%emt 0:04:35]} Kf6 {[%emt 0:00:30]} 62. Kf4 {[%emt 0:00:30]} Ne6+ 63. Kf3 {[%emt 0:00:30]} Nd8 {[%emt 0:01:00]} 64. h6 {[%emt 0:00:30]} Ke5 65. Kg3 {[%emt 0:00:30]} Ne6 {[%emt 0:01:00]} 1/2-1/2

[Event "Irish International Open 2019"]
[Site "Dublin"]
[Date "2019.04.22"]
[Round "9.11"]
[White "Horvath, Gabor"]
[Black "Fox, Anthony"]
[Result "1/2-1/2"]
[ECO "C92"]
[WhiteElo "2252"]
[BlackElo "2031"]
[Annotator "NA"]
[PlyCount "85"]
[EventDate "2019.02.28"]
[EventType "swiss"]
[EventCountry "IRL"]
[SourceTitle "playchess.com"]
[Source "ChessBase"]
[SourceQuality "1"]
[TimeControl "5400+30"]

1. e4 {[%emt 0:00:00]} e5 {[%emt 0:00:00]} 2. Nf3 {[%emt 0:00:00]} Nc6 {[%emt 0:00:00]} 3. Bb5 {[%emt 0:00:00]} a6 {[%emt 0:00:00]} 4. Ba4 {[%emt 0:00:00]} Nf6 {[%emt 0:00:00]} 5. O-O {[%emt 0:00:05]} Be7 {[%emt 0:00:03]} 6. Re1 {[%emt 0:00:03]} b5 {[%emt 0:00:06]} 7. Bb3 {[%emt 0:00:03]} d6 {[%emt 0:00:34]} 8. c3 {[%emt 0:00:05]} O-O {[%emt 0:00:19]} 9. h3 {[%emt 0:00:09]} Bb7 {[%emt 0:00:50]} 10. d4 {[%emt 0:00:23]} Re8 {[%emt 0:00:15]} 11. Nbd2 {[%emt 0:00:10]} Bf8 {[%emt 0:00:43]} 12. d5 {[%emt 0:00:16]} Nb8 {[%emt 0:00:49]} 13. Nf1 {[%emt 0:00:51]} Nbd7 {[%emt 0:01:31]} 14. Ng3 {[%emt 0:01:27]} Nc5 {[%emt 0:02:13]} 15. Bc2 {[%emt 0:00:09] C92: Closed Ruy Lopez: 9...Be6, Karpov and Flohr-Zaitsev Variations} c6 {[%emt 0:00:58]} 16. b4 {[%emt 0:01:59]} Ncd7 {[%emt 0:02:21]} 17. dxc6 {[%emt 0:00:18]} Bxc6 {[%emt 0:00:07]} 18. Bb3 {[%emt 0:00:13]} h6 {[%emt 0:02:58]} 19. Nh2 {[%emt 0:05:57] [#]} (19. Nh4 a5 20. a3 Nb6 21. Ng6 axb4 22. cxb4 d5 23. Nxf8 Kxf8 24. Bxh6 gxh6 {½-½ (154) Wang,H (2709)-Grischuk,A (2772) Huaian 2017}) 19... g6 $146 {[%emt 0:07:44]} (19... a5 $11 {keeps the balance.}) ({Predecessor:} 19... Nb6 20. Ng4 Nc4 21. a4 {½-½ (21) Shomoev,A (2567)-Nyback,T (2644) Budva 2009}) 20. Ng4 {[%emt 0:05:23]} Nxg4 $16 {[%emt 0:00:22]} 21. hxg4 {[%emt 0:00:17]} Qh4 {[%emt 0:17:42]} 22. Qf3 {[%emt 0:07:44]} Qf6 {[%emt 0:02:30]} 23. Qe2 {[%emt 0:10:32]} Qh4 {[%emt 0:02:07]} 24. Qf3 {[%emt 0:21:27]} Qf6 {[%emt 0:02:37]} 25. Qd1 {[%emt 0:01:55]} Qh4 {[%emt 0:02:06]} 26. Nf1 {[%emt 0:05:28]} Nf6 {[%emt 0:11:30]} 27. f3 {[%emt 0:02:36]} Nd7 {[%emt 0:05:13]} 28. g3 {[%emt 0:01:50]} Qe7 {[%emt 0:03:05]} 29. Be3 {[%emt 0:02:37]} Red8 {[%emt 0:04:43]} 30. Qd2 {[%emt 0:01:21]} g5 {[%emt 0:01:28]} 31. Bf2 {[%emt 0:01:49]} Nf6 {[%emt 0:02:19]} 32. Ne3 {[%emt 0:01:18]} Qb7 {[%emt 0:00:33]} 33. Rad1 {[%emt 0:02:57]} Rac8 {[%emt 0:03:22]} 34. Qd3 {[%emt 0:03:05]} Rd7 {[%emt 0:02:56]} 35. Rd2 {[%emt 0:06:36]} Rcd8 {[%emt 0:00:34]} 36. Bd5 {[%emt 0:02:03]} Rc8 {[%emt 0:02:27]} 37. Rc1 {[%emt 0:02:05]} Rdc7 {[%emt 0:00:06]} 38. Rdc2 {[%emt 0:00:37]} Nxd5 {[%emt 0:01:27]} 39. exd5 {[%emt 0:01:17]} Bd7 {[%emt 0:00:12]} 40. Qe4 {[%emt 0:01:02]} Qb8 {[%emt 0:03:01]} 41. a3 {[%emt 0:02:58]} Qb7 {[%emt 0:00:36]} 42. c4 {[%emt 0:01:12]} Qb8 {[%emt 0:03:30]} 43. Kg2 {[%emt 0:04:26]} 1/2-1/2